bitfinex/quotes_ETHUSD_20230703
["timestamp","ask_amount","ask_price","bid_price","bid_amount"]
[1688382052900,17.09907592,1965.6,1965.3,0.0059259]
[1688382053100,10.17604,1965.4,1965.3,0.0059259]
[1688382053299,13.20005,1965.4,1965.1,1.42558932]
[1688382053531,2.55878816,1965.3,1965.1,1.42558932]
[1688382053659,13.45722882,1965.2,1964.7,5.08978]
[1688382053865,13.20135,1965.2,1964.7,5.08978]
[1688382054365,13.20135,1965.2,1964.8,0.00525609]
[1688382054966,13.20135,1965.2,1964.8,5.09474609]
[1688382069480,18.81913816,1965.2,1964.8,0.40276263]
[1688382069685,0.01650759,1965.1,1964.8,0.40276263]
[1688382069854,12.72262,1965.0,1964.8,0.40276263]
[1688382070156,5.56931,1964.9,1964.8,0.40276263]
[1688382070581,10.65862,1964.9,1964.8,0.40276263]
[1688382071164,5.56931,1964.9,1964.8,0.40276263]
[1688382074660,10.65862,1964.9,1964.8,0.40276263]
[1688382075698,13.20327,1964.9,1964.8,0.40276263]
[1688382096369,13.61196408,1964.9,1964.8,0.40276263]
[1688382097439,10.65862,1964.9,1964.8,0.40276263]
[1688382097726,13.23582,1965.3,1964.8,5.49233263]
[1688382097889,13.23582,1965.3,1964.9,0.54923326]
[1688382097890,5.08854,1965.2,1964.9,0.54923326]
[1688382098221,5.08854,1965.2,1965.0,0.00522771]
[1688382099294,0.48,1965.1,1965.0,0.00522771]
[1688382103130,5.56879,1965.1,1965.0,0.00522771]
[1688382104429,5.28379,1965.1,1965.0,0.00522771]
[1688382104634,5.08879,1965.1,1965.0,0.00522771]
[1688382104925,5.08854,1965.2,1965.0,0.00522771]
[1688382105550,2.75553668,1965.3,1965.0,11.98277948]
[1688382105698,0.41443668,1965.3,1965.0,14.52729948]
[1688382105896,30.56,1965.5,1965.0,14.52729948]
[1688382106209,7.55632,1965.6,1965.0,14.52729948]
[1688382106393,7.55632,1965.6,1965.2,10.17691]
[1688382106593,12.64393,1965.6,1965.2,10.17691]
[1688382107359,12.64393,1965.6,1965.3,0.00518516]
[1688382107360,0.48,1965.5,1965.3,0.00518516]
[1688382107529,0.48,1965.5,1965.3,5.09345516]
[1688382112444,5.60570026,1965.6,1965.3,5.09345516]
[1688382112634,10.69329026,1965.6,1965.3,6.11163668]
[1688382113063,5.60570026,1965.6,1965.3,6.11163668]
[1688382113248,5.60570026,1965.6,1965.3,13.73887152]
[1688382113249,0.51818026,1965.6,1965.3,13.73887152]
[1688382114346,0.51818026,1965.6,1965.4,0.00517098]
[1688382114558,0.51818026,1965.6,1965.4,5.09304098]
[1688382114951,5.60571026,1965.6,1965.4,5.09304098]
[1688382120547,0.51818026,1965.6,1965.4,5.09304098]
[1688382122579,0.51818026,1965.6,1965.4,15.54059796]
[1688382122580,0.1,1965.6,1965.4,15.54059796]
[1688382122890,0.1,1965.9,1965.4,18.09938612]
[1688382123388,37.42691,1966.1,1965.4,18.09938612]
[1688382123389,40.42591093,1966.1,1965.4,18.09938612]
[1688382123697,40.42591093,1966.1,1965.5,1.288]
[1688382123698,10.58291093,1966.1,1965.5,1.288]
[1688382123989,10.53243204,1966.1,1965.6,12.71823]
[1688382124187,5.44610204,1966.1,1965.7,1.271823]
[1688382124496,5.44610204,1966.1,1965.8,5.08693]
[1688382125070,10.53246204,1966.1,1965.8,5.08693]
[1688382125273,10.53246204,1966.1,1965.9,0.00582869]
[1688382126257,0.48,1966.0,1965.5,5.0876]
[1688382126444,10.65317,1966.0,1965.6,0.50876]
[1688382126640,10.65317,1966.0,1965.6,5.59622]
[1688382128489,10.65317,1966.0,1965.7,0.00586108]
[1688382129287,10.65317,1966.0,1965.6,10.68372]
[1688382130357,13.15317,1966.0,1965.7,0.00586108]
[1688382131299,13.15317,1966.0,1965.6,10.68356]
[1688382132368,13.15317,1966.0,1965.7,0.00586108]
[1688382133154,13.15317,1966.0,1965.7,5.09309108]
[1688382133355,18.77095816,1966.0,1965.4,3.07172698]
[1688382133562,22.60218816,1966.0,1965.5,10.17522]
[1688382133754,2.55878816,1965.9,1965.5,10.17522]
[1688382133981,2.55878816,1965.9,1965.4,2.54398]
[1688382133982,10.65424,1965.8,1965.4,10.17572]
[1688382134168,5.56701,1965.8,1965.5,5.08775]
[1688382134390,5.56701,1965.8,1965.6,0.00587729]
[1688382134577,5.56701,1965.8,1965.6,5.09331729]
[1688382134794,10.65402,1965.8,1965.6,0.00587729]
[1688382134993,5.56701,1965.8,1965.6,5.09332729]
[1688382135897,10.65399,1965.8,1965.6,0.00587729]
[1688382140293,5.56698,1965.8,1965.6,0.00587729]
[1688382142220,5.56698,1965.8,1965.6,5.09334729]
[1688382142221,10.65396,1965.8,1965.6,5.09334729]
[1688382142590,5.56698,1965.8,1965.6,5.09334729]
[1688382143603,10.65396,1965.8,1965.6,5.09334729]
[1688382144604,5.56698,1965.8,1965.6,5.09334729]
[1688382146593,5.9705542,1965.8,1965.6,5.49769563]
[1688382147232,0.48,1965.8,1965.6,10.58519563]
[1688382149042,0.48,1965.8,1965.6,5.49769563]
[1688382149745,5.56702,1965.8,1965.6,6.49684484]
[1688382154036,5.30702,1965.8,1965.6,6.49684484]
[1688382154236,5.08702,1965.8,1965.6,6.49684484]
[1688382158264,5.08702,1965.8,1965.6,11.58434484]
[1688382159654,5.08702,1965.8,1965.6,6.49684484]
[1688382162770,12.71753,1965.8,1965.6,1.40937484]
[1688382162928,6.38868013,1965.8,1965.6,1.40937484]
[1688382163131,11.47566013,1965.8,1965.6,1.40937484]
[1688382167063,1.30166013,1965.8,1965.6,1.40937484]
[1688382169643,1.30166013,1965.8,1965.6,6.49686484]
[1688382171262,12.29509889,1965.9,1965.6,6.49686484]
[1688382171474,0.48,1965.8,1965.6,6.49686484]
[1688382172872,0.48,1965.8,1965.6,11.58436484]
[1688382175859,0.48,1965.8,1965.6,11.53436484]
[1688382176282,0.48,1965.8,1965.7,0.0070517]
[1688382176601,1.88438871,1965.8,1965.7,5.0942917]
[1688382177115,1.88438871,1965.8,1965.7,0.0070517]
[1688382177260,1.88438871,1965.8,1965.6,1.35937484]
[1688382177454,1.88438871,1965.8,1965.6,0.99914921]
[1688382177691,1.88438871,1965.8,1965.4,10.17575]
[1688382177964,3.47588871,1965.8,1965.4,5.08787]
[1688382178154,8.56288871,1965.8,1965.4,5.08787]
[1688382178385,8.56288871,1965.8,1965.5,0.00709707]
[1688382181303,13.64988871,1965.8,1965.5,0.00709707]
[1688382182496,12.05838871,1965.8,1965.5,5.09483707]
[1688382182702,5.567,1965.8,1965.5,5.09483707]
[1688382184506,10.65398,1965.8,1965.5,5.09483707]
[1688382189806,20.10425816,1965.8,1965.5,0.00709707]
[1688382189998,18.81525816,1965.8,1965.5,0.00709707]
[1688382190347,1.88152582,1965.7,1965.5,0.00709707]
[1688382190492,10.655,1965.6,1965.5,0.00709707]
[1688382200549,11.07252582,1965.6,1965.5,0.00709707]
[1688382203593,13.57252582,1965.6,1965.5,0.00709707]
[1688382204445,13.59901295,1965.6,1965.5,0.00709707]
[1688382204645,13.57252582,1965.6,1965.5,0.00709707]
[1688382211812,8.48502582,1965.6,1965.5,0.00709707]
[1688382213255,2.5,1965.6,1965.5,10.18261707]
[1688382213457,2.5,1965.6,1965.5,11.49655368]
[1688382216719,2.5,1965.6,1965.5,6.40879368]
[1688382221326,2.5,1965.6,1965.5,5.09485707]
[1688382221627,2.5,1965.6,1965.5,0.00709707]
[1688382225510,8.0675,1965.6,1965.5,0.00709707]
[1688382230926,8.0675,1965.6,1965.5,5.09485707]
[1688382231104,2.98,1965.6,1965.5,5.09485707]
[1688382232555,2.5,1965.6,1965.5,11.24216568]
[1688382236316,2.5,1965.6,1965.5,6.15440568]
[1688382238833,2.5,1965.6,1965.5,11.24216568]
[1688382239441,2.5,1965.6,1965.5,6.15440568]
[1688382241352,2.5,1965.6,1965.5,11.24216568]
[1688382241849,2.5,1965.6,1965.5,6.15440568]
[1688382244750,2.5,1965.6,1965.5,11.24216568]
[1688382246551,2.5,1965.6,1965.5,6.15440568]
[1688382246923,2.5,1965.6,1965.5,11.24216568]
[1688382248060,2.5,1965.6,1965.5,6.15440568]
[1688382255966,2.5,1965.6,1965.5,11.24216568]
[1688382262046,2.5,1965.6,1965.5,6.15440568]
[1688382267038,2.5,1965.6,1965.5,1.06664568]
[1688382269262,2.5,1965.6,1965.5,6.15440568]
[1688382279502,2.5,1965.6,1965.5,11.24216568]
[1688382281896,2.5,1965.6,1965.5,6.15440568]
[1688382282570,2.5,1965.6,1965.5,1.06664568]
[1688382284101,2.5,1965.6,1965.5,0.00709707]
[1688382288519,2.5,1965.6,1965.5,5.09485707]
[1688382293347,2.5,1965.6,1965.5,10.18261707]
[1688382303579,2.5,1965.6,1965.5,10.17552]
[1688382304804,2.5,1965.6,1965.4,5.50061907]
[1688382305012,2.5,1965.6,1965.4,5.50058907]
[1688382305311,2.5,1965.6,1965.4,7.07482969]
[1688382306115,2.5,1965.6,1965.4,12.16284969]
[1688382308029,2.5,1965.6,1965.4,7.07482969]
[1688382308997,2.5,1965.6,1965.4,5.50058907]
[1688382310530,2.5,1965.6,1965.4,0.41274907]
[1688382310838,2.5,1965.6,1965.3,11.22011711]
[1688382312515,2.5,1965.6,1965.3,6.13197711]
[1688382314604,2.5,1965.6,1965.3,6.53229787]
[1688382315824,2.5,1965.6,1965.3,1.44417787]
[1688382316331,2.5,1965.6,1965.2,10.17685]
[1688382316535,2.5,1965.6,1965.2,11.76295048]
[1688382317602,7.58753,1965.6,1965.2,11.76295048]
[1688382317807,12.67506,1965.6,1965.2,1.04268079]
[1688382318136,12.67506,1965.6,1964.9,5.16629297]
[1688382318137,1.297,1965.4,1964.9,9.65421]
[1688382318304,7.39554,1965.3,1965.1,5.08868]
[1688382318505,8.773617,1965.3,1965.1,5.08868]
[1688382319091,13.862057,1965.3,1965.1,5.08868]
[1688382319336,13.862057,1965.3,1965.0,5.0889]
[1688382319337,13.862057,1965.3,1965.0,10.17783]
[1688382319520,13.862057,1965.3,1965.0,5.0889]
[1688382319729,16.406197,1965.3,1965.0,5.0889]
[1688382320026,7.39554,1965.3,1965.0,10.17795]
[1688382324903,7.39554,1965.3,1965.0,12.72247]
[1688382327992,7.39554,1965.3,1965.0,10.17795]
[1688382327993,12.48398,1965.3,1965.0,10.17795]
[1688382331517,12.48398,1965.3,1965.1,0.00812583]
[1688382331817,12.48398,1965.3,1965.1,5.09682583]
[1688382341992,12.48398,1965.3,1965.1,5.51328923]
[1688382344011,7.39554,1965.3,1965.1,10.60207923]
[1688382347209,0.41034566,1965.4,1965.1,10.60207923]
[1688382347377,7.82256759,1965.5,1965.1,11.91673815]
[1688382347560,2.73470759,1965.5,1965.1,10.60207923]
[1688382348296,12.91028759,1965.5,1965.1,10.60207923]
[1688382348913,14.51658759,1965.5,1965.1,10.60207923]
[1688382349329,14.93133066,1965.5,1965.1,10.60207923]
[1688382350709,17.47521066,1965.5,1965.1,5.51328923]
[1688382354927,14.93133066,1965.5,1965.1,5.51328923]
[1688382355063,14.93133066,1965.5,1965.1,10.60207923]
[1688382358304,5.51904066,1965.5,1965.1,10.60207923]
[1688382358479,7.5876,1965.6,1965.1,14.44346923]
[1688382358685,5.08778,1965.5,1965.1,14.44346923]
[1688382358887,5.08778,1965.5,1965.1,14.75360615]
[1688382359618,5.08778,1965.5,1965.1,12.20921615]
[1688382360274,10.17556,1965.5,1965.1,5.51328923]
[1688382360474,10.17556,1965.5,1965.1,10.60207923]
[1688382361011,12.50586,1965.5,1965.1,10.60207923]
[1688382362113,14.06866,1965.5,1965.1,10.60207923]
[1688382364515,14.01866,1965.5,1965.1,10.60207923]
[1688382365483,14.01866,1965.5,1965.1,5.51328923]
[1688382367342,16.56254,1965.5,1965.1,5.51328923]
[1688382368760,0.48,1965.4,1965.1,0.42458923]
[1688382369047,10.17656,1965.3,1965.1,0.42458923]
[1688382370306,10.17656,1965.3,1965.1,5.51337923]
[1688382371142,5.08828,1965.3,1965.1,5.51337923]
[1688382376322,7.41814,1965.5,1965.1,11.82518015]
[1688382377037,12.50598,1965.5,1965.1,11.82518015]
[1688382386374,15.04986,1965.5,1965.1,11.82518015]
[1688382387253,15.04986,1965.5,1965.1,6.73639015]
[1688382388265,15.04986,1965.5,1965.1,5.51337923]
[1688382401104,15.04986,1965.5,1965.1,0.42458923]
[1688382401258,0.48,1965.4,1965.1,0.42458923]
[1688382401463,10.17656,1965.3,1965.1,0.42458923]
[1688382401901,10.17656,1965.3,1965.1,5.51336923]
[1688382410871,5.08828,1965.3,1965.1,10.60215923]
[1688382411073,5.08828,1965.3,1965.1,11.66237515]
[1688382412003,5.08828,1965.3,1965.1,10.60215923]
[1688382412209,5.08828,1965.3,1965.1,5.51336923]
[1688382415597,5.50236809,1965.3,1965.1,5.51336923]
[1688382416509,10.59064809,1965.3,1965.1,5.51336923]
[1688382418087,5.50236809,1965.3,1965.1,5.51336923]
[1688382418283,5.50236809,1965.3,1965.1,6.57359615]
[1688382418796,10.59064809,1965.3,1965.1,6.57359615]
[1688382419002,10.59064809,1965.3,1965.1,5.51336923]
[1688382425092,10.59064809,1965.3,1965.1,0.42458923]
[1688382432795,13.13478809,1965.3,1965.1,0.42458923]
[1688382438722,0.48,1965.2,1965.1,0.42458923]
[1688382439132,5.56854,1965.2,1965.1,0.42458923]
[1688382456893,0.48,1965.2,1965.1,0.42458923]
[1688382459733,0.48,1965.2,1965.1,5.51337923]
[1688382461969,0.48,1965.2,1965.1,0.42458923]
[1688382469162,5.56854,1965.2,1965.1,0.42458923]
[1688382476708,5.56854,1965.2,1965.0,5.08894]
[1688382476894,0.48,1965.2,1965.0,5.08894]
[1688382477473,0.48,1965.2,1965.1,0.00607272]
[1688382479909,0.50756826,1965.2,1965.1,5.09486272]
[1688382480084,0.48,1965.2,1965.1,5.09486272]
[1688382481975,0.48,1965.2,1965.1,0.00607272]
[1688382489262,5.56854,1965.2,1965.1,0.00607272]
[1688382491396,10.65708,1965.2,1965.1,0.00607272]
[1688382492778,10.68334607,1965.2,1965.1,0.00607272]
[1688382492993,10.65708,1965.2,1965.1,0.00607272]
[1688382494471,10.6877449,1965.2,1965.1,0.00607272]
[1688382494803,10.65708,1965.2,1965.1,0.00607272]
[1688382496003,13.20135,1965.2,1965.1,0.00607272]
[1688382496177,13.22807172,1965.2,1965.1,0.00607272]
[1688382496598,13.20135,1965.2,1965.1,0.00607272]
[1688382496966,0.48,1965.2,1965.1,0.00607272]
[1688382506352,5.56854,1965.2,1965.1,0.00607272]
[1688382509269,10.65708,1965.2,1965.1,0.00607272]
[1688382517232,10.68330642,1965.2,1965.1,0.00607272]
[1688382517431,10.65708,1965.2,1965.1,0.00607272]
[1688382531872,10.65437907,1965.2,1965.1,0.00607272]
[1688382532728,10.68371405,1965.2,1965.1,0.00607272]
[1688382534030,10.65437907,1965.2,1965.1,0.00607272]
[1688382534578,0.47729907,1965.2,1965.1,5.09486272]
[1688382534776,2.91408809,1965.3,1965.1,13.78621479]
[1688382537357,2.5,1965.3,1965.1,13.78621479]
[1688382539138,2.5,1965.3,1965.1,11.24182479]
[1688382550390,2.5,1965.3,1965.1,5.09486272]
[1688382550954,7.5883,1965.3,1965.1,5.09486272]
[1688382555293,0.48,1965.2,1965.1,0.00607272]
[1688382555495,13.20135,1965.2,1965.1,0.00607272]
[1688382555902,5.56854,1965.2,1965.1,0.00607272]
[1688382556074,12.20000782,1965.2,1965.1,0.00607272]
[1688382556408,7.11146782,1965.2,1965.1,0.00607272]
[1688382557605,12.20000782,1965.2,1965.1,0.00607272]
[1688382557773,7.11146782,1965.2,1965.1,0.00607272]
[1688382559015,12.20000782,1965.2,1965.1,0.00607272]
[1688382560913,12.228316,1965.2,1965.1,0.00607272]
[1688382561112,12.20000782,1965.2,1965.1,0.00607272]
[1688382565507,14.74427782,1965.2,1965.1,0.00607272]
[1688382567338,20.36206598,1965.2,1965.1,0.00607272]
[1688382587690,20.36206598,1965.2,1965.0,0.39794799]
[1688382587859,5.08905,1965.0,1964.8,1.5909]
[1688382588060,0.48,1964.9,1964.8,1.5909]
[1688382588641,0.48,1964.9,1964.8,0.00527026]
[1688382589047,0.48,1964.9,1964.8,1.02779193]
[1688382591294,0.48,1964.9,1964.8,1.43941415]
[1688382593793,5.56931,1964.9,1964.8,1.43941415]
[1688382597021,10.65862,1964.9,1964.8,1.43941415]
[1688382599998,13.20327,1964.9,1964.8,1.43941415]
[1688382609245,17.12265038,1964.9,1964.8,1.43941415]
[1688382609608,17.12265038,1964.9,1964.8,1.43414389]
[1688382609999,17.12265038,1964.9,1964.5,1.6354]
[1688382610199,21.07275038,1964.9,1964.5,1.6354]
[1688382610692,21.07275038,1964.9,1964.6,0.00529915]
[1688382617807,21.07275038,1964.9,1964.4,1.40794873]
[1688382617991,21.07275038,1964.9,1964.4,1.6206]
[1688382618617,21.07275038,1964.9,1964.5,0.00531359]
[1688382621833,24.13175038,1964.9,1964.5,0.00531359]
[1688382624034,2.55878816,1964.8,1964.5,0.00531359]
[1688382624337,10.65966,1964.7,1964.5,0.00531359]
[1688382627537,13.20457,1964.7,1964.5,0.00531359]
[1688382627836,11.72770372,1964.7,1964.5,0.00531359]
[1688382628148,14.27261372,1964.7,1964.5,0.00531359]
[1688382628646,14.27261372,1964.7,1964.3,2.73509036]
[1688382628818,14.75237,1964.7,1964.3,2.73509036]
[1688382629581,14.75237,1964.7,1964.4,0.00566668]
[1688382630238,17.13367,1964.7,1964.4,0.00566668]
[1688382631145,15.58587,1964.7,1964.4,0.00566668]
[1688382631371,18.14465816,1964.7,1964.4,0.00566668]
[1688382631576,1.81446582,1964.6,1964.4,0.0079165]
[1688382631843,13.20587,1964.5,1964.4,0.0079165]
[1688382633799,18.82365816,1964.5,1964.4,0.0079165]
[1688382634158,23.73926575,1964.5,1964.4,0.0079165]
[1688382634681,23.73926575,1964.5,1964.0,1.6161]
[1688382634882,3.059,1964.3,1963.6,0.5]
[1688382635186,15.27422,1964.1,1963.8,1.6161]
[1688382635679,13.2091,1964.0,1963.9,0.00755875]
[1688382636546,13.2091,1964.0,1963.6,6.78917648]
[1688382636770,13.2091,1964.0,1963.6,11.88175648]
[1688382636956,13.2091,1964.0,1963.7,1.18817565]
[1688382637286,13.2091,1964.0,1963.7,6.28042565]
[1688382637648,13.2091,1964.0,1963.8,0.00756902]
[1688382644617,15.7091,1964.0,1963.8,0.00756902]
[1688382654223,13.16328,1964.0,1963.8,0.00756902]
[1688382654884,15.7091,1964.0,1963.8,0.00756902]
[1688382658997,15.7091,1964.0,1963.8,1.29956902]
[1688382667628,15.7091,1964.0,1963.8,0.00756902]
[1688382667828,15.7091,1964.0,1963.8,1.30456902]
[1688382668537,15.7091,1964.0,1963.8,0.00756902]
[1688382677078,2.98,1964.0,1963.8,0.00756902]
[1688382677699,9.61354562,1964.0,1963.8,0.00756902]
[1688382677843,22.34284562,1964.0,1963.8,0.00756902]
[1688382678042,2.255,1963.9,1963.8,0.00756902]
[1688382678248,12.9188,1963.9,1963.8,0.00756902]
[1688382678779,14.4849,1963.9,1963.4,6.6458]
[1688382678984,0.48,1963.8,1963.4,7.9428]
[1688382679159,5.57218,1963.8,1963.4,7.9428]
[1688382679355,7.22148,1963.8,1963.4,2.8497]
[1688382679568,12.31366,1963.8,1963.4,2.8497]
[1688382679770,5.57218,1963.8,1963.5,0.00674232]
[1688382679971,0.48,1963.8,1963.5,5.09968232]
[1688382681083,0.48,1963.8,1963.5,0.00674232]
[1688382682490,5.5722,1963.8,1963.5,0.00674232]
[1688382683077,7.1884,1963.8,1963.5,0.00674232]
[1688382684571,12.2806,1963.8,1963.5,0.00674232]
[1688382686785,14.82668,1963.8,1963.5,0.00674232]
[1688382688568,16.56797652,1963.8,1963.5,0.00674232]
[1688382688970,18.12377652,1963.8,1963.5,0.00674232]
[1688382689670,18.52253736,1963.8,1963.5,0.00674232]
[1688382691279,21.58153736,1963.8,1963.5,0.00674232]
[1688382695621,2.55878816,1963.7,1963.5,0.00674232]
[1688382695807,13.2117,1963.6,1963.5,0.00674232]
[1688382696827,13.2117,1963.6,1963.3,1.29]
[1688382697601,13.2117,1963.6,1963.4,0.00643635]
[1688382701093,15.7117,1963.6,1963.4,0.00643635]
[1688382702218,16.32587012,1963.6,1963.4,0.00643635]
[1688382706730,16.74373229,1963.6,1963.4,0.00643635]
[1688382706938,4.01203229,1963.6,1963.4,0.00643635]
[1688382707145,3.39786217,1963.6,1963.4,0.00643635]
[1688382713258,8.49060217,1963.6,1963.4,0.00643635]
[1688382713674,8.49060217,1963.6,1963.3,0.16156039]
[1688382714028,8.49060217,1963.6,1963.2,7.85597]
[1688382714227,8.49060217,1963.6,1963.3,1.292]
[1688382714424,10.12052975,1963.6,1963.3,1.292]
[1688382714741,10.12052975,1963.6,1963.4,0.00603408]
[1688382715265,15.21326975,1963.6,1963.4,0.00603408]
[1688382719576,17.75960975,1963.6,1963.4,0.00603408]
[1688382722436,20.31839791,1963.6,1963.4,0.00603408]
[1688382725401,13.53105836,1963.5,1963.4,0.00603408]
[1688382725604,14.01105836,1963.5,1963.4,0.00603408]
[1688382725816,42.05652443,1964.0,1963.4,0.00603408]
[1688382725817,30.56,1964.0,1963.5,5.365]
[1688382725978,0.12552099,1964.9,1963.7,5.365]
[1688382725979,2.54485,1964.8,1963.7,5.365]
[1688382726299,2.54485,1964.8,1964.0,13.22896]
[1688382726300,2.3436,1964.8,1964.0,13.22896]
[1688382726460,5.08892,1965.1,1964.3,12.7269]
[1688382726656,10.17792,1965.1,1964.3,12.7269]
[1688382726860,14.63482407,1965.1,1964.7,1.292]
[1688382727318,15.04359718,1965.1,1964.7,1.292]
[1688382727819,14.91791211,1965.1,1964.8,0.00582791]
[1688382728027,2.55878816,1965.0,1964.8,0.00582791]
[1688382728177,7.64785816,1965.0,1964.8,0.00582791]
[1688382728373,8.8042751,1965.0,1964.8,0.00582791]
[1688382729809,0.48,1964.9,1964.8,0.00582791]
[1688382732847,0.48,1964.9,1964.6,11.47203]
[1688382733202,0.12469678,1965.2,1964.8,0.5]
[1688382733440,0.1,1966.2,1965.0,5.365]
[1688382733441,0.1,1965.6,1965.0,5.365]
[1688382733642,0.1,1965.6,1965.1,15.2658]
[1688382733940,10.2751,1965.6,1965.1,10.17718]
[1688382734110,0.1,1965.6,1965.1,12.72157]
[1688382734311,0.1,1965.6,1965.4,1.297]
[1688382734515,0.1,1965.6,1965.5,10.17552]
[1688382734837,0.1,1965.6,1965.5,10.18124563]
[1688382735413,0.1,1965.6,1965.5,12.72512563]
[1688382737005,0.58,1965.6,1965.5,12.72512563]
[1688382739212,0.1,1965.6,1965.5,12.72512563]
[1688382747176,0.1,1965.6,1965.5,10.18124563]
[1688382747339,0.58,1965.6,1965.5,10.18124563]
[1688382747541,0.58,1965.6,1965.5,5.09348563]
[1688382747763,0.58,1965.6,1965.5,10.18124563]
[1688382749682,0.58,1965.6,1965.5,5.09348563]
[1688382749883,0.58,1965.6,1965.5,10.18124563]
[1688382750396,0.58,1965.6,1965.5,5.09348563]
[1688382759386,0.58,1965.6,1965.5,0.00572563]
[1688382759387,5.6675,1965.6,1965.5,0.00572563]
[1688382759610,7.014176,1965.6,1965.5,0.00572563]
[1688382761309,5.6675,1965.6,1965.5,0.00572563]
[1688382762646,5.6675,1965.6,1965.5,5.09348563]
[1688382764722,8.1675,1965.6,1965.5,5.09348563]
[1688382766598,5.6675,1965.6,1965.5,5.09348563]
[1688382774458,6.06976753,1965.6,1965.5,5.09348563]
[1688382777983,7.36276753,1965.6,1965.5,5.09348563]
[1688382779066,6.06976753,1965.6,1965.5,5.09348563]
[1688382786333,0.98226753,1965.6,1965.5,5.09348563]
[1688382791940,6.06976753,1965.6,1965.5,5.09348563]
[1688382795041,6.06976753,1965.6,1965.5,0.00572563]
[1688382796942,0.98226753,1965.6,1965.5,0.00572563]
[1688382798639,0.98226753,1965.6,1965.5,5.09348563]
[1688382801732,0.98226753,1965.6,1965.5,10.18124563]
[1688382801972,0.98226753,1965.6,1965.5,0.00572563]
[1688382808094,6.06976753,1965.6,1965.5,0.00572563]
[1688382822914,11.15726753,1965.6,1965.5,0.00572563]
[1688382823531,18.63296244,1965.6,1965.5,0.00572563]
[1688382823718,18.63296244,1965.6,1965.3,5.08817]
[1688382823916,0.48,1965.5,1965.1,5.08859]
[1688382824105,10.17614,1965.4,1965.1,10.17728]
[1688382824425,12.69434,1965.4,1965.1,10.17728]
[1688382824722,12.69434,1965.4,1965.2,0.00530136]
[1688382824923,7.60627,1965.4,1965.2,5.09375136]
[1688382826626,12.69434,1965.4,1965.2,5.09375136]
[1688382827001,2.5182,1965.4,1965.2,5.09375136]
[1688382827716,2.5182,1965.4,1965.2,0.00530136]
[1688382827918,2.5182,1965.4,1965.2,5.09378136]
[1688382829132,2.5182,1965.4,1965.2,10.18232136]
[1688382829889,2.5182,1965.4,1965.2,5.09378136]
[1688382830130,2.5182,1965.4,1965.2,10.18232136]
[1688382832005,2.5182,1965.4,1965.2,5.09378136]
[1688382835612,10.16502816,1965.4,1965.2,0.00530136]
[1688382835813,0.48,1965.3,1965.2,0.00530136]
[1688382836112,5.56828,1965.3,1965.2,0.00530136]
[1688382836452,0.48,1965.3,1965.2,0.00530136]
[1688382836633,10.65656,1965.3,1965.2,0.00530136]
[1688382836840,10.65656,1965.3,1964.9,11.80669]
[1688382837014,10.65656,1965.3,1964.9,6.71749]
[1688382837554,13.2007,1965.3,1964.9,1.6283]
[1688382837847,14.8289,1965.3,1965.0,0.00582922]
[1688382838210,13.2007,1965.3,1965.0,0.00582922]
[1688382838434,6.51660594,1965.3,1965.0,0.00582922]
[1688382838745,11.60488594,1965.3,1965.0,0.00582922]
[1688382838947,12.28476,1965.3,1965.0,0.00582922]
[1688382839112,7.19648,1965.3,1965.0,0.00582922]
[1688382839456,12.28476,1965.3,1965.0,0.00582922]
[1688382839843,14.8289,1965.3,1965.0,0.00582922]
[1688382848755,15.2444954,1965.3,1965.0,0.00582922]
[1688382849769,5.0882,1965.4,1965.0,11.36516514]
[1688382849954,5.08779,1965.5,1965.0,15.20668514]
[1688382850159,0.1,1965.6,1965.0,15.20668514]
[1688382850474,0.1,1965.6,1965.0,14.17742485]
[1688382850643,0.1,1965.6,1965.2,12.72108]
[1688382851845,5.18759,1965.6,1965.3,0.00577913]
[1688382852042,5.18759,1965.6,1965.3,5.09389913]
[1688382852971,5.18759,1965.6,1965.3,0.00577913]
[1688382852972,12.81893,1965.6,1965.3,0.00577913]
[1688382853170,10.17604,1965.4,1965.3,0.00577913]
[1688382854640,10.17604,1965.4,1965.3,0.00314935]
[1688382854989,10.17604,1965.4,1965.3,0.00577913]
[1688382856370,10.65604,1965.4,1965.3,0.00577913]
[1688382861311,5.56802,1965.4,1965.3,0.00577913]
[1688382862807,5.56802,1965.4,1965.3,5.09405913]
[1688382867131,0.48,1965.4,1965.3,5.09405913]
[1688382867285,0.48,1965.5,1965.3,5.09405913]
[1688382867480,0.48,1965.5,1965.3,0.00577913]
[1688382867821,0.80813,1965.5,1965.3,0.00577913]
[1688382869280,0.80813,1965.5,1965.3,5.09401913]
[1688382871230,0.48,1965.5,1965.3,5.09401913]
[1688382871532,0.48,1965.5,1965.3,10.18229913]
[1688382871991,0.48,1965.5,1965.3,0.00577913]
[1688382873206,0.48,1965.5,1965.3,5.09403913]
[1688382876217,0.48,1965.5,1965.3,12.72645913]
[1688382876425,0.1,1965.6,1965.4,1.27264591]
[1688382876597,0.1,1965.6,1965.5,12.7194]
[1688382876799,0.1,1965.6,1965.5,12.7249579]
[1688382877004,0.1,1965.6,1965.5,10.1810779]
[1688382877948,0.1,1965.6,1965.5,5.0933179]
[1688382878754,0.1,1965.6,1965.5,0.0055579]
[1688382881939,5.1875,1965.6,1965.5,0.0055579]
[1688382884107,0.1,1965.6,1965.5,5.0933179]
[1688382887727,0.1,1965.6,1965.5,5.50932659]
[1688382891555,0.1,1965.6,1965.5,10.59708659]
[1688382891734,0.098,1965.6,1965.5,10.59708659]
[1688382891923,0.098,1965.6,1965.5,0.42156659]
[1688382893264,0.098,1965.6,1965.5,1.48130325]
[1688382896162,0.098,1965.6,1965.5,6.56906325]
[1688382901457,0.098,1965.6,1965.5,5.50932659]
[1688382901753,0.578,1965.6,1965.5,5.50932659]
[1688382902276,0.578,1965.6,1965.5,0.42156659]
[1688382902459,5.6655,1965.6,1965.5,0.0055579]
[1688382902835,8.1864,1965.6,1965.5,0.0055579]
[1688382905045,13.2739,1965.6,1965.5,0.0055579]
[1688382905482,15.017142,1965.6,1965.5,0.0055579]
[1688382905687,9.929642,1965.6,1965.5,0.0055579]
[1688382905852,9.929642,1965.6,1965.4,5.08785]